[Event "Titled Tuesday Blitz December 27 Early 2022"]
[White "Barbashin, Igor"]
[Black "Strahov, Andrej"]
[WhiteFideId "4155718"]
[BlackFideId "4165489"]
[WhiteElo "2169"]
[BlackElo "2398"]
[Result "1-0"]
[Round "07"]
[TimeControl "180+2"]
[Date "2022.12.27"]
[WhiteClock "0:00:25"]
[BlackClock "0:00:04"]

1. d4 {[%clk 0:03:00]}  d5 {[%clk 0:02:57]} 2. c4 {[%clk 0:03:00]}  e6 {[%clk 0:02:56]} 3. Nc3 {[%clk 0:03:00]}  Nf6 {[%clk 0:02:56]} 4. Nf3 {[%clk 0:03:00]}  c6 {[%clk 0:02:54]} 5. g3 {[%clk 0:03:00]}  Nbd7 {[%clk 0:02:42]} 6. Bg2 {[%clk 0:02:57]}  Be7 {[%clk 0:02:43]} 7. O-O {[%clk 0:02:56]}  O-O {[%clk 0:02:43]} 8. Qd3 {[%clk 0:02:54]}  b6 {[%clk 0:02:41]} 9. e4 {[%clk 0:02:47]}  dxc4 {[%clk 0:02:28]} 10. Qxc4 {[%clk 0:02:43]}  Bb7 {[%clk 0:02:28]} 11. Rd1 {[%clk 0:02:38]}  b5 {[%clk 0:02:22]} 12. Qe2 {[%clk 0:02:36]}  Qb6 {[%clk 0:02:22]} 13. Be3 {[%clk 0:02:26]}  c5 {[%clk 0:02:17]} 14. Qxb5 {[%clk 0:02:13]}  Qxb5 {[%clk 0:02:07]} 15. Nxb5 {[%clk 0:02:14]}  Bxe4 {[%clk 0:02:08]} 16. dxc5 {[%clk 0:02:06]}  Bxc5 {[%clk 0:01:58]} 17. Bxc5 {[%clk 0:01:56]}  Nxc5 {[%clk 0:01:59]} 18. b4 {[%clk 0:01:44]}  Nd3 {[%clk 0:01:52]} 19. a3 {[%clk 0:01:43]}  Nb2 {[%clk 0:01:24]} 20. Rd2 {[%clk 0:01:38]}  Nc4 {[%clk 0:01:24]} 21. Rd4 {[%clk 0:01:35]}  Rfc8 {[%clk 0:01:07]} 22. Rc1 {[%clk 0:01:19]}  Nb6 {[%clk 0:01:07]} 23. Rxc8+ {[%clk 0:01:17]}  Rxc8 {[%clk 0:01:08]} 24. Nxa7 {[%clk 0:01:03]}  Rc1+ {[%clk 0:01:04]} 25. Bf1 {[%clk 0:01:03]}  Nbd5 {[%clk 0:00:55]} 26. Nd2 {[%clk 0:01:00]}  Bg6 {[%clk 0:00:14]} 27. Kg2 {[%clk 0:00:59]}  h5 {[%clk 0:00:14]} 28. Rc4 {[%clk 0:00:56]}  Rd1 {[%clk 0:00:14]} 29. Nf3 {[%clk 0:00:51]}  Be4 {[%clk 0:00:14]} 30. Be2 {[%clk 0:00:51]}  Rd2 {[%clk 0:00:15]} 31. Rxe4 {[%clk 0:00:49]}  Nxe4 {[%clk 0:00:07]} 32. Nxd2 {[%clk 0:00:49]}  Nxd2 {[%clk 0:00:08]} 33. Bxh5 {[%clk 0:00:47]}  Nb1 {[%clk 0:00:07]} 34. Nb5 {[%clk 0:00:45]}  Kf8 {[%clk 0:00:05]} 35. Bf3 {[%clk 0:00:44]}  Ke7 {[%clk 0:00:06]} 36. Bxd5 {[%clk 0:00:44]}  exd5 {[%clk 0:00:06]} 37. a4 {[%clk 0:00:42]}  Kd7 {[%clk 0:00:04]} 38. Nd4 {[%clk 0:00:41]}  Nc3 {[%clk 0:00:03]} 39. a5 {[%clk 0:00:41]}  Kd6 {[%clk 0:00:03]} 40. a6 {[%clk 0:00:40]}  Kc7 {[%clk 0:00:03]} 41. b5 {[%clk 0:00:38]}  Kb6 {[%clk 0:00:04]} 42. Kf3 {[%clk 0:00:37]}  Ne4 {[%clk 0:00:03]} 43. Ke3 {[%clk 0:00:36]}  Nd6 {[%clk 0:00:03]} 44. h4 {[%clk 0:00:35]}  f6 {[%clk 0:00:02]} 45. g4 {[%clk 0:00:34]}  Nc4+ {[%clk 0:00:03]} 46. Kf4 {[%clk 0:00:32]}  Ne5 {[%clk 0:00:03]} 47. Kf5 {[%clk 0:00:31]}  Nd3 {[%clk 0:00:04]} 48. f3 {[%clk 0:00:29]}  Nf2 {[%clk 0:00:04]} 49. Kg6 {[%clk 0:00:28]}  Nd3 {[%clk 0:00:02]} 50. Kxg7 {[%clk 0:00:27]}  Nc5 {[%clk 0:00:02]} 51. Kxf6 {[%clk 0:00:26]}  Nd7+ {[%clk 0:00:03]} 52. Ke7 {[%clk 0:00:25]}  Nf8 {[%clk 0:00:04]} 1-0


[Site "https://www.chess.com"]

[Event "Titled Tuesday Blitz December 27 Early 2022"]
[White "Bas Mas, Jose Joaquin"]
[Black "Aghasiyev, Kamal"]
[WhiteFideId "22219064"]
[BlackFideId "13402854"]
[WhiteElo "2197"]
[BlackElo "2441"]
[Result "0-1"]
[Round "07"]
[TimeControl "180+2"]
[Date "2022.12.27"]
[WhiteClock "0:00:16"]
[BlackClock "0:01:50"]

1. e4 {[%clk 0:03:00]}  c5 {[%clk 0:02:58]} 2. Nc3 {[%clk 0:03:00]}  e6 {[%clk 0:02:54]} 3. Nf3 {[%clk 0:02:54]}  a6 {[%clk 0:02:53]} 4. d4 {[%clk 0:02:53]}  cxd4 {[%clk 0:02:53]} 5. Nxd4 {[%clk 0:02:54]}  b5 {[%clk 0:02:52]} 6. Bd3 {[%clk 0:02:53]}  Bb7 {[%clk 0:02:50]} 7. O-O {[%clk 0:02:51]}  Nc6 {[%clk 0:02:50]} 8. Nce2 {[%clk 0:02:43]}  Nge7 {[%clk 0:02:46]} 9. b3 {[%clk 0:02:41]}  Nxd4 {[%clk 0:02:38]} 10. Nxd4 {[%clk 0:02:40]}  Nc6 {[%clk 0:02:37]} 11. Nf3 {[%clk 0:02:40]}  Be7 {[%clk 0:02:37]} 12. Bb2 {[%clk 0:02:39]}  O-O {[%clk 0:02:38]} 13. Qe2 {[%clk 0:02:16]}  Nb4 {[%clk 0:02:36]} 14. Rfd1 {[%clk 0:02:09]}  Qc7 {[%clk 0:02:34]} 15. a3 {[%clk 0:02:07]}  Nxd3 {[%clk 0:02:33]} 16. Qxd3 {[%clk 0:02:07]}  d5 {[%clk 0:02:33]} 17. e5 {[%clk 0:01:47]}  a5 {[%clk 0:02:33]} 18. a4 {[%clk 0:01:38]}  b4 {[%clk 0:02:30]} 19. Re1 {[%clk 0:01:29]}  Ba6 {[%clk 0:02:29]} 20. Qd2 {[%clk 0:01:21]}  Rac8 {[%clk 0:02:27]} 21. Rac1 {[%clk 0:01:17]}  d4 {[%clk 0:02:15]} 22. Bxd4 {[%clk 0:01:14]}  Rfd8 {[%clk 0:02:15]} 23. Qf4 {[%clk 0:01:10]}  Bb7 {[%clk 0:02:13]} 24. Qe3 {[%clk 0:01:02]}  Bxf3 {[%clk 0:02:11]} 25. gxf3 {[%clk 0:01:02]}  Rd5 {[%clk 0:02:08]} 26. f4 {[%clk 0:00:52]}  Qd7 {[%clk 0:02:03]} 27. Bb6 {[%clk 0:00:34]}  Rc3 {[%clk 0:02:02]} 28. Qe4 {[%clk 0:00:32]}  Qc6 {[%clk 0:01:55]} 29. Bxa5 {[%clk 0:00:24]}  Rxa5 {[%clk 0:01:54]} 30. Qxc6 {[%clk 0:00:22]}  Rxc6 {[%clk 0:01:54]} 31. Kg2 {[%clk 0:00:20]}  g6 {[%clk 0:01:52]} 32. Kf3 {[%clk 0:00:20]}  Rac5 {[%clk 0:01:51]} 33. Re2 {[%clk 0:00:20]}  Rc3+ {[%clk 0:01:51]} 34. Ke4 {[%clk 0:00:20]}  Rxb3 {[%clk 0:01:51]} 35. Ra1 {[%clk 0:00:17]}  Ra3 {[%clk 0:01:50]} 36. Rxa3 {[%clk 0:00:16]}  bxa3 {[%clk 0:01:50]} 0-1


[Site "https://www.chess.com"]

[Event "Titled Tuesday Blitz December 27 Early 2022"]
[White "Baskakov, Egor"]
[Black "Balakrishnan, Praveen"]
[WhiteFideId "24197866"]
[BlackFideId "2064871"]
[WhiteElo "2215"]
[BlackElo "2529"]
[Result "1/2-1/2"]
[Round "07"]
[TimeControl "180+2"]
[Date "2022.12.27"]
[WhiteClock "0:00:14"]
[BlackClock "0:00:17"]

1. e4 {[%clk 0:03:00]}  c6 {[%clk 0:02:59]} 2. d4 {[%clk 0:03:00]}  d5 {[%clk 0:03:00]} 3. e5 {[%clk 0:03:01]}  Bf5 {[%clk 0:02:59]} 4. Ne2 {[%clk 0:03:01]}  e6 {[%clk 0:02:58]} 5. Ng3 {[%clk 0:03:02]}  Bg6 {[%clk 0:02:58]} 6. h4 {[%clk 0:03:02]}  h5 {[%clk 0:02:53]} 7. Bd3 {[%clk 0:03:02]}  Bxd3 {[%clk 0:02:49]} 8. cxd3 {[%clk 0:03:03]}  Be7 {[%clk 0:02:49]} 9. Nxh5 {[%clk 0:03:01]}  g6 {[%clk 0:02:48]} 10. Nf4 {[%clk 0:03:01]}  Rxh4 {[%clk 0:02:45]} 11. Rxh4 {[%clk 0:03:01]}  Bxh4 {[%clk 0:02:42]} 12. Nd2 {[%clk 0:03:00]}  Be7 {[%clk 0:02:35]} 13. Qg4 {[%clk 0:02:57]}  Nh6 {[%clk 0:02:23]} 14. Qh3 {[%clk 0:02:56]}  Nf5 {[%clk 0:02:24]} 15. Nf3 {[%clk 0:02:55]}  Na6 {[%clk 0:02:11]} 16. Bd2 {[%clk 0:02:45]}  Kd7 {[%clk 0:01:45]} 17. O-O-O {[%clk 0:02:26]}  Qh8 {[%clk 0:01:45]} 18. Rh1 {[%clk 0:02:22]}  Qxh3 {[%clk 0:01:45]} 19. Nxh3 {[%clk 0:02:18]}  Rh8 {[%clk 0:01:43]} 20. Kd1 {[%clk 0:01:55]}  Nc7 {[%clk 0:01:38]} 21. a4 {[%clk 0:01:49]}  Na6 {[%clk 0:01:24]} 22. g4 {[%clk 0:01:37]}  Ng7 {[%clk 0:01:19]} 23. Ke2 {[%clk 0:01:36]}  Ne8 {[%clk 0:01:15]} 24. Bg5 {[%clk 0:01:31]}  Bxg5 {[%clk 0:01:10]} 25. Nfxg5 {[%clk 0:01:32]}  Ke7 {[%clk 0:01:06]} 26. f4 {[%clk 0:01:26]}  Nec7 {[%clk 0:01:02]} 27. Rf1 {[%clk 0:01:21]}  Rh4 {[%clk 0:00:59]} 28. Kf3 {[%clk 0:01:10]}  Nb4 {[%clk 0:00:58]} 29. Kg3 {[%clk 0:01:10]}  Rh8 {[%clk 0:00:57]} 30. f5 {[%clk 0:01:10]}  gxf5 {[%clk 0:00:44]} 31. gxf5 {[%clk 0:01:11]}  Nxd3 {[%clk 0:00:45]} 32. fxe6 {[%clk 0:01:11]}  fxe6 {[%clk 0:00:44]} 33. Rf7+ {[%clk 0:01:11]}  Kd8 {[%clk 0:00:44]} 34. Kg4 {[%clk 0:00:44]}  Nxb2 {[%clk 0:00:30]} 35. Rf2 {[%clk 0:00:41]}  Rxh3 {[%clk 0:00:22]} 36. Kxh3 {[%clk 0:00:34]}  Nxa4 {[%clk 0:00:19]} 37. Rf8+ {[%clk 0:00:26]}  Ke7 {[%clk 0:00:17]} 38. Rf7+ {[%clk 0:00:24]}  Kd8 {[%clk 0:00:17]} 39. Rf8+ {[%clk 0:00:21]}  Ke7 {[%clk 0:00:17]} 40. Rf7+ {[%clk 0:00:17]}  Kd8 {[%clk 0:00:17]} 41. Rf8+ {[%clk 0:00:14]} 1/2-1/2


[Site "https://www.chess.com"]

[Event "Titled Tuesday Blitz December 27 Early 2022"]
[White "Belozerov, Andrei"]
[Black "Toncheva, Nadya"]
[WhiteFideId "4120213"]
[BlackFideId "2924056"]
[WhiteElo "2461"]
[BlackElo "2295"]
[Result "0-1"]
[Round "07"]
[TimeControl "180+2"]
[Date "2022.12.27"]
[WhiteClock "0:00:08"]
[BlackClock "0:00:07"]

1. d4 {[%clk 0:02:57]}  d5 {[%clk 0:02:59]} 2. c4 {[%clk 0:02:56]}  dxc4 {[%clk 0:03:00]} 3. Nf3 {[%clk 0:02:54]}  Nf6 {[%clk 0:03:01]} 4. e3 {[%clk 0:02:54]}  Bg4 {[%clk 0:03:01]} 5. Bxc4 {[%clk 0:02:53]}  e6 {[%clk 0:03:01]} 6. Nc3 {[%clk 0:02:52]}  a6 {[%clk 0:03:01]} 7. h3 {[%clk 0:02:48]}  Bh5 {[%clk 0:03:01]} 8. O-O {[%clk 0:02:46]}  Nc6 {[%clk 0:03:00]} 9. Be2 {[%clk 0:02:36]}  Bd6 {[%clk 0:02:59]} 10. a3 {[%clk 0:02:34]}  O-O {[%clk 0:02:58]} 11. b4 {[%clk 0:02:29]}  Re8 {[%clk 0:02:59]} 12. Bb2 {[%clk 0:02:29]}  Qe7 {[%clk 0:02:57]} 13. Rc1 {[%clk 0:02:27]}  Rad8 {[%clk 0:02:56]} 14. Nd2 {[%clk 0:02:22]}  Bxe2 {[%clk 0:02:55]} 15. Qxe2 {[%clk 0:02:21]}  e5 {[%clk 0:02:54]} 16. d5 {[%clk 0:02:21]}  Nb8 {[%clk 0:02:50]} 17. Nde4 {[%clk 0:02:11]}  c6 {[%clk 0:02:36]} 18. Nxf6+ {[%clk 0:02:08]}  Qxf6 {[%clk 0:02:35]} 19. Ne4 {[%clk 0:02:05]}  Qg6 {[%clk 0:02:29]} 20. Nc3 {[%clk 0:01:42]}  e4 {[%clk 0:02:20]} 21. Rfd1 {[%clk 0:01:40]}  Qf5 {[%clk 0:01:42]} 22. Qg4 {[%clk 0:01:35]}  Qxg4 {[%clk 0:01:39]} 23. hxg4 {[%clk 0:01:35]}  Be5 {[%clk 0:01:35]} 24. Rc2 {[%clk 0:01:31]}  cxd5 {[%clk 0:01:33]} 25. Nxd5 {[%clk 0:01:23]}  Bxb2 {[%clk 0:01:29]} 26. Rxb2 {[%clk 0:01:21]}  Nc6 {[%clk 0:01:29]} 27. Rbd2 {[%clk 0:01:18]}  Kf8 {[%clk 0:01:23]} 28. Nc3 {[%clk 0:01:14]}  Rxd2 {[%clk 0:01:07]} 29. Rxd2 {[%clk 0:01:14]}  Ne5 {[%clk 0:01:07]} 30. Nxe4 {[%clk 0:01:11]}  Nxg4 {[%clk 0:01:07]} 31. Nc5 {[%clk 0:01:08]}  b6 {[%clk 0:00:53]} 32. Nxa6 {[%clk 0:01:05]}  Ra8 {[%clk 0:00:52]} 33. b5 {[%clk 0:01:02]}  Ke7 {[%clk 0:00:46]} 34. f3 {[%clk 0:00:51]}  Ne5 {[%clk 0:00:46]} 35. Kf2 {[%clk 0:00:38]}  Nc4 {[%clk 0:00:42]} 36. Rd3 {[%clk 0:00:36]}  Ne5 {[%clk 0:00:34]} 37. Rc3 {[%clk 0:00:36]}  Kd6 {[%clk 0:00:30]} 38. e4 {[%clk 0:00:31]}  h5 {[%clk 0:00:24]} 39. f4 {[%clk 0:00:29]}  Nd7 {[%clk 0:00:24]} 40. Rd3+ {[%clk 0:00:26]}  Ke7 {[%clk 0:00:23]} 41. Nb4 {[%clk 0:00:25]}  Nc5 {[%clk 0:00:18]} 42. Re3 {[%clk 0:00:23]}  Kf6 {[%clk 0:00:14]} 43. Kf3 {[%clk 0:00:22]}  Ra5 {[%clk 0:00:09]} 44. Nd5+ {[%clk 0:00:21]}  Ke6 {[%clk 0:00:09]} 45. Nxb6 {[%clk 0:00:18]}  Rxb5 {[%clk 0:00:09]} 46. f5+ {[%clk 0:00:17]}  Kd6 {[%clk 0:00:07]} 47. Nc4+ {[%clk 0:00:18]}  Ke7 {[%clk 0:00:07]} 48. Rc3 {[%clk 0:00:16]}  Rb1 {[%clk 0:00:07]} 49. Ne3 {[%clk 0:00:14]}  Na4 {[%clk 0:00:07]} 50. Rd3 {[%clk 0:00:14]}  Nc5 {[%clk 0:00:06]} 51. Rd4 {[%clk 0:00:12]}  Rb3 {[%clk 0:00:06]} 52. Kf4 {[%clk 0:00:10]}  Nd3+ {[%clk 0:00:06]} 53. Kf3 {[%clk 0:00:10]}  Ne5+ {[%clk 0:00:06]} 54. Ke2 {[%clk 0:00:10]}  Rb2+ {[%clk 0:00:06]} 55. Rd2 {[%clk 0:00:09]}  Rb3 {[%clk 0:00:06]} 56. Nd5+ {[%clk 0:00:09]}  Ke8 {[%clk 0:00:05]} 57. Ra2 {[%clk 0:00:09]}  Nc4 {[%clk 0:00:04]} 58. a4 {[%clk 0:00:09]}  Rg3 {[%clk 0:00:05]} 59. Kf2 {[%clk 0:00:08]}  Rb3 {[%clk 0:00:03]} 60. a5 {[%clk 0:00:08]}  Nxa5 {[%clk 0:00:03]} 61. Rxa5 {[%clk 0:00:08]}  Rb2+ {[%clk 0:00:04]} 62. Kf3 {[%clk 0:00:08]}  h4 {[%clk 0:00:03]} 63. Ne3 {[%clk 0:00:08]}  Kd7 {[%clk 0:00:03]} 64. Rd5+ {[%clk 0:00:07]}  Ke7 {[%clk 0:00:03]} 65. Ra5 {[%clk 0:00:07]}  Kf6 {[%clk 0:00:04]} 66. Ra6+ {[%clk 0:00:07]}  Kg5 {[%clk 0:00:04]} 67. Ra7 {[%clk 0:00:06]}  Rb3 {[%clk 0:00:05]} 68. Rxf7 {[%clk 0:00:05]}  g6 {[%clk 0:00:06]} 69. fxg6 {[%clk 0:00:05]}  Kxg6 {[%clk 0:00:06]} 70. Rf4 {[%clk 0:00:06]}  Kg5 {[%clk 0:00:07]} 71. Rg4+ {[%clk 0:00:06]}  Kh5 {[%clk 0:00:07]} 72. Rf4 {[%clk 0:00:07]}  Kg5 {[%clk 0:00:08]} 73. Rf5+ {[%clk 0:00:07]}  Kg6 {[%clk 0:00:08]} 74. Kf4 {[%clk 0:00:08]}  Rb2 {[%clk 0:00:08]} 75. Rg5+ {[%clk 0:00:07]}  Kf6 {[%clk 0:00:08]} 76. Rg4 {[%clk 0:00:08]}  Rf2# {[%clk 0:00:07]} 0-1


[Site "https://www.chess.com"]

[Event "Titled Tuesday Blitz December 27 Early 2022"]
[White "Bettalli, Francesco"]
[Black "Sourath Biswas"]
[WhiteFideId "2816453"]
[BlackFideId "35091484"]
[WhiteElo "2252"]
[BlackElo "2281"]
[Result "1-0"]
[Round "07"]
[TimeControl "180+2"]
[Date "2022.12.27"]
[WhiteClock "0:01:14"]
[BlackClock "0:00:47"]

1. d4 {[%clk 0:03:00]}  Nf6 {[%clk 0:02:59]} 2. Nc3 {[%clk 0:03:01]}  g6 {[%clk 0:02:59]} 3. e4 {[%clk 0:03:00]}  d6 {[%clk 0:02:59]} 4. Be3 {[%clk 0:02:58]}  Bg7 {[%clk 0:03:00]} 5. Qd2 {[%clk 0:02:57]}  Ng4 {[%clk 0:02:56]} 6. Bg5 {[%clk 0:02:57]}  h6 {[%clk 0:02:56]} 7. Bh4 {[%clk 0:02:57]}  c5 {[%clk 0:02:52]} 8. dxc5 {[%clk 0:02:55]}  dxc5 {[%clk 0:02:53]} 9. Qxd8+ {[%clk 0:02:54]}  Kxd8 {[%clk 0:02:54]} 10. h3 {[%clk 0:02:49]}  Ne5 {[%clk 0:02:50]} 11. O-O-O+ {[%clk 0:02:49]}  Bd7 {[%clk 0:02:50]} 12. f4 {[%clk 0:02:43]}  Nec6 {[%clk 0:02:50]} 13. Nf3 {[%clk 0:02:43]}  a6 {[%clk 0:02:41]} 14. Bf2 {[%clk 0:02:42]}  b6 {[%clk 0:02:39]} 15. Nd5 {[%clk 0:02:42]}  Ra7 {[%clk 0:02:20]} 16. Nxb6 {[%clk 0:02:40]}  Rb7 {[%clk 0:02:21]} 17. Bxc5 {[%clk 0:02:29]}  Kc7 {[%clk 0:02:20]} 18. Nd5+ {[%clk 0:02:28]}  Kd8 {[%clk 0:02:20]} 19. e5 {[%clk 0:02:27]}  Ke8 {[%clk 0:02:11]} 20. Bc4 {[%clk 0:02:25]}  Be6 {[%clk 0:02:10]} 21. Bb3 {[%clk 0:02:24]}  Nd7 {[%clk 0:02:10]} 22. Be3 {[%clk 0:02:23]}  g5 {[%clk 0:02:08]} 23. g3 {[%clk 0:02:21]}  Nb4 {[%clk 0:01:37]} 24. Nxb4 {[%clk 0:02:19]}  Bxb3 {[%clk 0:01:37]} 25. axb3 {[%clk 0:02:16]}  Rxb4 {[%clk 0:01:38]} 26. Rd4 {[%clk 0:02:12]}  Rxd4 {[%clk 0:01:35]} 27. Bxd4 {[%clk 0:02:13]}  gxf4 {[%clk 0:01:35]} 28. gxf4 {[%clk 0:02:14]}  h5 {[%clk 0:01:33]} 29. Kb1 {[%clk 0:02:08]}  Bh6 {[%clk 0:01:33]} 30. e6 {[%clk 0:02:06]}  Nf6 {[%clk 0:01:32]} 31. f5 {[%clk 0:02:02]}  fxe6 {[%clk 0:01:32]} 32. fxe6 {[%clk 0:02:03]}  Rf8 {[%clk 0:01:32]} 33. Ne5 {[%clk 0:02:01]}  Ne4 {[%clk 0:01:31]} 34. Nf7 {[%clk 0:01:55]}  Bf4 {[%clk 0:01:28]} 35. Rd1 {[%clk 0:01:48]}  Rg8 {[%clk 0:01:10]} 36. Be3 {[%clk 0:01:33]}  Bd6 {[%clk 0:01:05]} 37. Rd4 {[%clk 0:01:27]}  Ng3 {[%clk 0:00:47]} 38. Rc4 {[%clk 0:01:14]} 1-0


[Site "https://www.chess.com"]

[Event "Titled Tuesday Blitz December 27 Early 2022"]
[White "Bochnicka, Vladimir"]
[Black "Oro, Faustino"]
[WhiteFideId "14943450"]
[BlackFideId "20000197"]
[WhiteElo "2327"]
[BlackElo "2269"]
[Result "1-0"]
[Round "07"]
[TimeControl "180+2"]
[Date "2022.12.27"]
[WhiteClock "0:00:09"]
[BlackClock "0:00:05"]

1. e4 {[%clk 0:03:00]}  e5 {[%clk 0:02:59]} 2. Nf3 {[%clk 0:03:01]}  Nc6 {[%clk 0:03:00]} 3. Bc4 {[%clk 0:03:02]}  Bc5 {[%clk 0:03:00]} 4. c3 {[%clk 0:03:02]}  Nf6 {[%clk 0:03:00]} 5. d3 {[%clk 0:03:03]}  O-O {[%clk 0:03:00]} 6. Nbd2 {[%clk 0:03:03]}  d6 {[%clk 0:03:00]} 7. O-O {[%clk 0:03:00]}  a6 {[%clk 0:03:00]} 8. Bb3 {[%clk 0:03:00]}  Be6 {[%clk 0:02:58]} 9. h3 {[%clk 0:03:00]}  Ba7 {[%clk 0:02:58]} 10. Re1 {[%clk 0:03:00]}  h6 {[%clk 0:02:56]} 11. Nf1 {[%clk 0:03:01]}  Re8 {[%clk 0:02:54]} 12. Ng3 {[%clk 0:03:01]}  d5 {[%clk 0:02:55]} 13. Qe2 {[%clk 0:02:49]}  Qd6 {[%clk 0:02:51]} 14. Nh4 {[%clk 0:02:45]}  Kh7 {[%clk 0:02:41]} 15. Nhf5 {[%clk 0:02:33]}  Qd7 {[%clk 0:02:38]} 16. Qf3 {[%clk 0:02:33]}  dxe4 {[%clk 0:01:45]} 17. dxe4 {[%clk 0:02:31]}  Ng8 {[%clk 0:01:45]} 18. Rd1 {[%clk 0:01:58]}  Qc8 {[%clk 0:01:42]} 19. Nh5 {[%clk 0:00:49]}  Bxb3 {[%clk 0:01:08]} 20. axb3 {[%clk 0:00:48]}  g6 {[%clk 0:01:07]} 21. Nd6 {[%clk 0:00:31]}  Qe6 {[%clk 0:00:45]} 22. Nxe8 {[%clk 0:00:31]}  Rxe8 {[%clk 0:00:45]} 23. Ng3 {[%clk 0:00:32]}  Nge7 {[%clk 0:00:42]} 24. Be3 {[%clk 0:00:28]}  Bxe3 {[%clk 0:00:42]} 25. Qxe3 {[%clk 0:00:29]}  f5 {[%clk 0:00:39]} 26. exf5 {[%clk 0:00:23]}  gxf5 {[%clk 0:00:40]} 27. Qd3 {[%clk 0:00:22]}  Rd8 {[%clk 0:00:31]} 28. Qc4 {[%clk 0:00:18]}  Nd5 {[%clk 0:00:19]} 29. Nxf5 {[%clk 0:00:15]}  Qxf5 {[%clk 0:00:07]} 30. Rxd5 {[%clk 0:00:14]}  Rf8 {[%clk 0:00:07]} 31. Qd3 {[%clk 0:00:10]}  Kg6 {[%clk 0:00:03]} 32. Qxf5+ {[%clk 0:00:10]}  Kxf5 {[%clk 0:00:04]} 33. Rd7 {[%clk 0:00:10]}  Rc8 {[%clk 0:00:03]} 34. g3 {[%clk 0:00:08]}  Ke4 {[%clk 0:00:03]} 35. Kg2 {[%clk 0:00:08]}  Kf5 {[%clk 0:00:03]} 36. Re1 {[%clk 0:00:08]}  Ke6 {[%clk 0:00:04]} 37. Rh7 {[%clk 0:00:08]}  Na5 {[%clk 0:00:04]} 38. Rxh6+ {[%clk 0:00:08]}  Kd5 {[%clk 0:00:05]} 39. b4 {[%clk 0:00:08]}  Nb3 {[%clk 0:00:04]} 40. Rh5 {[%clk 0:00:09]}  Re8 {[%clk 0:00:03]} 41. f4 {[%clk 0:00:09]}  Kc4 {[%clk 0:00:04]} 42. Rhxe5 {[%clk 0:00:09]}  Rd8 {[%clk 0:00:05]} 43. R1e4+ {[%clk 0:00:08]}  Kd3 {[%clk 0:00:04]} 44. Re3+ {[%clk 0:00:09]}  Kc2 {[%clk 0:00:05]} 45. Re2+ {[%clk 0:00:09]}  Kb1 {[%clk 0:00:06]} 46. f5 {[%clk 0:00:09]}  Nc1 {[%clk 0:00:06]} 47. Re1 {[%clk 0:00:09]}  Kxb2 {[%clk 0:00:05]} 48. f6 {[%clk 0:00:08]}  Nd3 {[%clk 0:00:05]} 49. R5e2+ {[%clk 0:00:08]}  Kb3 {[%clk 0:00:06]} 50. Rd1 {[%clk 0:00:08]}  Nf4+ {[%clk 0:00:04]} 51. gxf4 {[%clk 0:00:08]}  Rxd1 {[%clk 0:00:05]} 52. f7 {[%clk 0:00:09]} 1-0


[Site "https://www.chess.com"]

[Event "Titled Tuesday Blitz December 27 Early 2022"]
[White "Bogaudinov, Rushan"]
[Black "Poeta, Caio Medeiros"]
[WhiteFideId "4129288"]
[BlackFideId "2142660"]
[WhiteElo "1939"]
[BlackElo "2088"]
[Result "0-1"]
[Round "07"]
[TimeControl "180+2"]
[Date "2022.12.27"]
[WhiteClock "0:00:20"]
[BlackClock "0:01:06"]

1. d4 {[%clk 0:02:42]}  Nf6 {[%clk 0:02:59]} 2. Nf3 {[%clk 0:02:42]}  e6 {[%clk 0:02:58]} 3. g3 {[%clk 0:02:42]}  b6 {[%clk 0:02:59]} 4. Bg2 {[%clk 0:02:43]}  Be7 {[%clk 0:02:57]} 5. O-O {[%clk 0:02:43]}  O-O {[%clk 0:02:57]} 6. c4 {[%clk 0:02:44]}  Bb7 {[%clk 0:02:56]} 7. Nc3 {[%clk 0:02:44]}  d5 {[%clk 0:02:56]} 8. cxd5 {[%clk 0:02:43]}  Nxd5 {[%clk 0:02:56]} 9. Re1 {[%clk 0:02:42]}  c5 {[%clk 0:02:55]} 10. Nxd5 {[%clk 0:02:41]}  Bxd5 {[%clk 0:02:54]} 11. Bf4 {[%clk 0:02:31]}  Nc6 {[%clk 0:02:51]} 12. e4 {[%clk 0:02:27]}  Bc4 {[%clk 0:02:50]} 13. b3 {[%clk 0:02:26]}  Ba6 {[%clk 0:02:48]} 14. d5 {[%clk 0:02:21]}  exd5 {[%clk 0:02:45]} 15. exd5 {[%clk 0:02:21]}  Nb4 {[%clk 0:02:42]} 16. Ne5 {[%clk 0:02:14]}  Bb7 {[%clk 0:02:35]} 17. a3 {[%clk 0:02:08]}  Nxd5 {[%clk 0:02:32]} 18. Qh5 {[%clk 0:01:53]}  Nxf4 {[%clk 0:02:25]} 19. gxf4 {[%clk 0:01:49]}  Bxg2 {[%clk 0:02:24]} 20. Rad1 {[%clk 0:01:35]}  Bd5 {[%clk 0:02:17]} 21. Nc6 {[%clk 0:01:35]}  Bxc6 {[%clk 0:02:04]} 22. Rxd8 {[%clk 0:01:34]}  Bxd8 {[%clk 0:02:05]} 23. f5 {[%clk 0:01:26]}  Bf6 {[%clk 0:02:05]} 24. Qg4 {[%clk 0:01:17]}  Rfe8 {[%clk 0:02:04]} 25. Re3 {[%clk 0:01:16]}  Bd4 {[%clk 0:01:59]} 26. Rxe8+ {[%clk 0:01:09]}  Rxe8 {[%clk 0:02:00]} 27. Kf1 {[%clk 0:01:09]}  Bd5 {[%clk 0:01:51]} 28. b4 {[%clk 0:01:06]}  Bc4+ {[%clk 0:01:46]} 29. Kg2 {[%clk 0:01:04]}  Re2 {[%clk 0:01:41]} 30. bxc5 {[%clk 0:00:55]}  Rxf2+ {[%clk 0:01:38]} 31. Kh3 {[%clk 0:00:51]}  bxc5 {[%clk 0:01:35]} 32. Qe4 {[%clk 0:00:44]}  h5 {[%clk 0:01:21]} 33. a4 {[%clk 0:00:35]}  Rxf5 {[%clk 0:01:15]} 34. Qa8+ {[%clk 0:00:24]}  Kh7 {[%clk 0:01:14]} 35. Qe4 {[%clk 0:00:23]}  g6 {[%clk 0:01:10]} 36. a5 {[%clk 0:00:20]}  Bf1+ {[%clk 0:01:06]} 37. Kg3 {[%clk 0:00:20]}  Bf2# {[%clk 0:01:06]} 0-1


[Site "https://www.chess.com"]

[Event "Titled Tuesday Blitz December 27 Early 2022"]
[White "Bringas Gomez, Artai"]
[Black "Marjanovic, Annamaria"]
[WhiteFideId "24534064"]
[BlackFideId "750930"]
[WhiteElo "2206"]
[BlackElo "2273"]
[Result "0-1"]
[Round "07"]
[TimeControl "180+2"]
[Date "2022.12.27"]
[WhiteClock "0:01:20"]
[BlackClock "0:01:32"]

1. e4 {[%clk 0:03:00]}  e6 {[%clk 0:02:58]} 2. d4 {[%clk 0:02:59]}  d5 {[%clk 0:02:58]} 3. exd5 {[%clk 0:02:58]}  exd5 {[%clk 0:02:59]} 4. Bd3 {[%clk 0:02:58]}  Nf6 {[%clk 0:02:58]} 5. Nf3 {[%clk 0:02:58]}  c5 {[%clk 0:02:57]} 6. Qe2+ {[%clk 0:02:54]}  Be7 {[%clk 0:02:56]} 7. dxc5 {[%clk 0:02:54]}  O-O {[%clk 0:02:56]} 8. Be3 {[%clk 0:02:52]}  Nc6 {[%clk 0:02:54]} 9. c3 {[%clk 0:02:50]}  Re8 {[%clk 0:02:53]} 10. b4 {[%clk 0:02:42]}  Bg4 {[%clk 0:02:50]} 11. h3 {[%clk 0:02:38]}  Bxf3 {[%clk 0:02:46]} 12. Qxf3 {[%clk 0:02:31]}  d4 {[%clk 0:02:45]} 13. cxd4 {[%clk 0:02:28]}  Nxb4 {[%clk 0:02:44]} 14. Bf5 {[%clk 0:01:40]}  g6 {[%clk 0:02:42]} 15. a3 {[%clk 0:01:41]}  Nc6 {[%clk 0:02:36]} 16. Bd3 {[%clk 0:01:32]}  Nxd4 {[%clk 0:02:29]} 17. Qxb7 {[%clk 0:01:31]}  Rb8 {[%clk 0:02:05]} 18. Qa6 {[%clk 0:01:30]}  Nb3 {[%clk 0:02:03]} 19. Ra2 {[%clk 0:01:30]}  Nxc5 {[%clk 0:01:53]} 20. Bxc5 {[%clk 0:01:30]}  Bxc5+ {[%clk 0:01:52]} 21. Re2 {[%clk 0:01:30]}  Rxe2+ {[%clk 0:01:48]} 22. Kxe2 {[%clk 0:01:30]}  Rb2+ {[%clk 0:01:36]} 23. Nd2 {[%clk 0:01:22]}  Ne4 {[%clk 0:01:34]} 24. Rd1 {[%clk 0:01:20]}  Nc3+ {[%clk 0:01:32]} 0-1


[Site "https://www.chess.com"]